bitfinex/quotes_ETHUSD_20240621
["timestamp","ask_amount","ask_price","bid_price","bid_amount"]
[1718953926035,0.91053526,3520.7,3520.0,4.49674]
[1718953926326,0.91053526,3520.6,3520.0,3.873]
[1718953926538,0.41853032,3520.5,3520.0,3.873]
[1718953926754,0.41853032,3520.4,3520.1,0.62374]
[1718953926927,0.41853032,3520.3,3520.0,3.873]
[1718953927256,0.41853032,3520.2,3520.0,3.873]
[1718953927446,0.41853032,3520.1,3520.0,3.873]
[1718953927649,0.41853032,3520.1,3520.0,4.49674]
[1718953928036,0.41853032,3520.8,3520.0,4.49674]
[1718953928259,0.49200494,3520.9,3520.0,4.49674]
[1718953928260,0.41853032,3520.7,3520.0,4.49674]
[1718953928558,0.41853032,3520.6,3520.0,4.49674]
[1718953928769,0.41853032,3520.5,3520.1,0.686114]
[1718953928957,0.41853032,3520.4,3520.1,0.686114]
[1718953929125,0.41853032,3520.3,3520.0,3.873]
[1718953929456,0.41853032,3520.2,3520.0,3.873]
[1718953929618,0.41853032,3520.1,3520.0,3.873]
[1718953929822,0.41853032,3520.8,3520.0,3.873]
[1718953930023,0.41853032,3520.7,3520.2,0.873]
[1718953930223,0.41853032,3520.6,3520.2,0.873]
[1718953930421,0.41853032,3520.5,3520.3,2.3766]
[1718953930661,0.49199471,3521.1,3520.4,0.32496]
[1718953930866,0.4180649,3521.0,3520.3,5.3766]
[1718953931061,0.4180649,3521.0,3520.4,3.0]
[1718953931261,0.4180649,3520.9,3520.4,3.0]
[1718953931564,0.4180649,3520.8,3520.3,5.3766]
[1718953931730,0.4180649,3520.7,3520.3,5.70156]
[1718953931925,0.4180649,3520.6,3520.3,5.3766]
[1718953932158,0.4180649,3520.5,3520.3,5.3766]
[1718953932378,0.4180649,3520.4,3520.3,5.3766]
[1718953932537,0.91002011,3521.0,3520.3,5.3766]
[1718953932739,0.41835747,3520.9,3520.4,0.62496]
[1718953933066,0.28519836,3521.6,3520.3,3.0]
[1718953933067,0.41835747,3520.8,3520.3,3.0]
[1718953933383,0.41835747,3520.7,3520.0,5.4806]
[1718953933664,0.41835747,3520.6,3520.1,0.63536]
[1718953933966,0.41835747,3520.6,3520.1,3.63536]
[1718953934744,0.91035998,3520.6,3520.1,3.63536]
[1718953935049,0.91035998,3520.5,3520.1,3.63536]
[1718953935355,0.91035998,3520.4,3520.1,3.63536]
[1718953935701,0.91035998,3520.3,3520.1,3.0]
[1718953935945,0.91035998,3520.3,3520.0,2.4806]
[1718953935946,0.41835747,3520.2,3520.0,5.4806]
[1718953936068,0.41835747,3520.1,3520.0,5.4806]
[1718953936269,0.41835747,3520.1,3520.0,6.11596]
[1718953936465,0.41835747,3520.6,3520.0,6.11596]
[1718953936671,0.41835747,3520.5,3520.0,6.11596]
[1718953936873,0.41835747,3520.4,3520.0,6.11596]
[1718953937083,0.41835747,3520.3,3520.0,6.11596]
[1718953937306,0.41835747,3520.2,3520.1,0.698896]
[1718953937627,0.41835747,3520.6,3520.1,3.698896]
[1718953937925,0.41835747,3520.5,3520.1,3.698896]
[1718953938081,0.41835747,3520.4,3520.1,3.0]
[1718953938280,0.41835747,3520.3,3520.0,5.4806]
[1718953938524,0.41835747,3520.2,3520.0,5.4806]
[1718953938736,0.41835747,3520.1,3520.0,5.4806]
[1718953938889,0.41835747,3520.6,3520.0,6.11596]
[1718953939087,0.41835747,3520.5,3520.0,6.11596]
[1718953939394,0.41835747,3520.4,3520.0,6.11596]
[1718953939598,0.41835747,3520.3,3520.0,6.11596]
[1718953939805,0.41835747,3520.2,3520.1,0.698896]
[1718953940011,0.41835747,3520.2,3520.1,3.698896]
[1718953940400,0.41835747,3520.6,3520.1,3.698896]
[1718953940616,0.41835747,3520.6,3520.1,3.0]
[1718953940795,0.41835747,3520.6,3520.0,5.4806]
[1718953941416,0.41835747,3520.5,3520.0,5.4806]
[1718953941615,0.41835747,3520.4,3520.0,5.4806]
[1718953941807,0.41835747,3520.3,3520.0,6.11596]
[1718953942114,0.41835747,3520.2,3520.0,6.11596]
[1718953942417,0.41835747,3520.1,3520.0,6.11596]
[1718953942611,0.41835747,3520.1,3520.0,5.4806]
[1718953942812,0.91036065,3520.6,3520.0,5.4806]
[1718953943116,0.91036065,3520.5,3520.0,5.4806]
[1718953943314,0.91036065,3520.4,3520.0,5.4806]
[1718953943478,0.41835747,3520.3,3520.0,5.4806]
[1718953943820,0.41835747,3520.2,3520.0,5.4806]
[1718953944118,0.41835747,3520.1,3520.0,6.11596]
[1718953944287,0.41835747,3520.1,3520.0,5.4806]
[1718953944487,0.41835747,3520.6,3520.0,5.4806]
[1718953944820,0.41835747,3520.5,3520.0,5.4806]
[1718953945138,0.41835747,3520.4,3520.0,5.4806]
[1718953945313,0.41835747,3520.3,3520.0,6.11596]
[1718953945516,0.41835747,3520.2,3520.0,5.4806]
[1718953945817,0.41835747,3520.1,3520.0,3.0]
[1718953946017,0.41835747,3520.6,3519.8,3.0]
[1718953946186,0.49200338,3520.7,3519.8,4.11786]
[1718953946187,0.41835747,3520.5,3519.8,4.11786]
[1718953946387,0.41835747,3520.4,3519.8,4.11786]
[1718953946588,0.41835747,3520.3,3519.8,3.0]
[1718953946835,0.41835747,3520.2,3519.8,3.0]
[1718953946987,0.49200338,3520.7,3519.8,3.0]
[1718953946988,0.41835747,3520.1,3519.8,3.0]
[1718953947321,3.357,3520.8,3519.8,3.0]
[1718953947322,0.41835747,3520.0,3519.8,3.0]
[1718953947505,0.41835747,3519.9,3519.8,3.0]
[1718953947709,0.41835747,3520.6,3519.8,3.0]
[1718953947888,0.41835747,3520.5,3519.8,3.0]
[1718953948215,0.41835747,3520.4,3519.8,3.0]
[1718953948433,0.41835747,3520.3,3519.8,4.11786]
[1718953948726,0.41835747,3520.2,3519.8,4.11786]
[1718953949023,0.41835747,3520.1,3519.8,4.11786]
[1718953949209,0.41835747,3520.0,3519.8,4.11786]
[1718953949398,0.41835747,3519.9,3519.8,3.0]
[1718953949893,0.41835747,3520.6,3519.8,3.0]
[1718953950105,0.41835747,3520.5,3519.8,3.0]
[1718953950305,0.41835747,3520.4,3519.8,3.0]
[1718953950516,0.41835747,3520.3,3519.8,3.0]
[1718953950682,0.41835747,3520.2,3519.8,3.0]
[1718953950889,0.41835747,3520.1,3519.9,0.61402]
[1718953951122,0.41835747,3520.0,3519.9,0.61402]
[1718953951295,0.91039891,3520.5,3519.9,0.61402]
[1718953951622,0.91040648,3520.4,3519.8,3.0]
[1718953951823,0.41835747,3520.3,3519.8,3.0]
[1718953951992,0.41835747,3520.2,3519.8,3.0]
[1718953952191,0.41835747,3520.1,3519.8,3.0]
[1718953952396,0.41835747,3520.0,3519.8,3.0]
[1718953952719,0.49204901,3520.7,3519.9,0.61402]
[1718953952919,0.49204901,3520.7,3519.8,3.0]
[1718953952920,0.41811376,3520.6,3519.8,3.0]
[1718953953233,0.41811376,3520.5,3519.8,3.0]
[1718953953520,0.41811376,3520.4,3519.8,3.0]
[1718953953714,0.41811376,3520.3,3519.8,3.0]
[1718953953915,0.41811376,3520.2,3519.8,3.0]
[1718953954109,0.41811376,3520.1,3519.8,4.11786]
[1718953954315,0.41811376,3520.0,3519.8,4.11786]
[1718953954491,0.41811376,3519.9,3519.8,3.0]
[1718953955025,0.49200171,3520.7,3519.8,3.0]
[1718953955026,0.41811376,3520.6,3519.8,3.0]
[1718953955221,0.41811376,3520.5,3519.8,3.0]
[1718953955430,0.41811376,3520.4,3519.8,3.0]
[1718953955739,0.41811376,3520.3,3519.8,4.11786]
[1718953956027,0.41811376,3520.2,3519.8,4.11786]
[1718953956206,0.41811376,3520.1,3519.9,0.873]
[1718953956402,0.41811376,3520.0,3519.9,1.47052045]
[1718953956609,0.41811376,3520.6,3519.9,0.873]
[1718953956916,0.41811376,3520.5,3519.9,0.873]
[1718953957120,0.41811376,3520.4,3519.9,0.873]
[1718953957291,0.41811376,3520.3,3519.9,1.48702]
[1718953957629,0.49202272,3520.7,3519.9,1.48702]
[1718953957630,0.41811376,3520.2,3519.9,1.48702]
[1718953957791,0.41811376,3520.1,3519.9,1.48702]
[1718953957995,0.41811376,3520.0,3519.9,1.48702]
[1718953958191,0.41811376,3520.0,3519.9,0.873]
[1718953958507,0.41811376,3520.6,3519.9,0.873]
[1718953958713,0.41811376,3520.6,3519.5,5.0384]
[1718953958714,0.41811376,3520.5,3520.3,0.873]
[1718953958919,0.41811376,3520.5,3520.4,0.873]
[1718953959132,0.49202272,3521.3,3520.5,2.3875]
[1718953959304,0.41788886,3521.2,3520.5,5.3875]
[1718953959510,0.41788886,3521.1,3520.5,5.3875]
[1718953959726,0.49202272,3521.3,3520.5,5.3875]
[1718953959727,0.41788886,3521.0,3520.5,5.3875]
[1718953960036,0.41788886,3520.9,3520.7,3.1598]
[1718953960237,0.41788886,3520.8,3520.7,3.1598]
[1718953960414,2.2755,3521.7,3520.7,6.1598]
[1718953960415,0.41788886,3521.1,3520.7,6.1598]
[1718953960621,0.41826781,3521.0,3520.8,3.61598]
[1718953960915,0.41826781,3520.9,3520.8,3.61598]
[1718953961115,0.41826781,3521.4,3520.8,3.0]
[1718953961343,0.41826781,3521.3,3520.8,3.0]
[1718953961516,0.41826781,3521.2,3520.8,3.0]
[1718953961707,0.41826781,3521.1,3520.8,3.0]
[1718953961906,0.41826781,3521.0,3520.8,3.0]
[1718953962123,0.41826781,3520.9,3520.8,3.61598]
[1718953962333,0.41826781,3521.5,3520.8,3.61598]
[1718953962540,0.41826781,3521.4,3520.8,3.0]
[1718953962738,0.41826781,3521.3,3520.8,3.0]
[1718953962939,0.41826781,3521.2,3520.8,3.0]
[1718953963158,0.41826781,3521.1,3520.8,3.61598]
[1718953963456,0.41826781,3521.0,3520.8,3.61598]
[1718953963636,0.41826781,3520.9,3520.8,3.61598]
[1718953964211,0.41826781,3521.5,3520.8,3.61598]
[1718953964411,0.41826781,3521.4,3520.8,3.61598]
[1718953964614,0.41826781,3521.3,3520.9,0.677578]
[1718953964807,0.41826781,3521.2,3520.9,0.677578]
[1718953965013,0.41826781,3521.1,3520.9,0.677578]
[1718953965206,0.41826781,3521.0,3520.9,0.677578]
[1718953965405,0.4918869,3521.6,3520.9,0.677578]
[1718953965406,0.41826781,3521.5,3520.9,0.677578]
[1718953965646,0.41826781,3521.4,3520.9,0.677578]
[1718953965846,0.41826781,3521.3,3521.0,0.6837378]
[1718953966141,0.41826781,3521.2,3521.0,0.6837378]
[1718953966341,0.41826781,3521.1,3520.8,3.0]
[1718953966546,0.41826781,3521.0,3520.8,3.0]
[1718953966745,0.49187827,3521.6,3520.8,3.0]
[1718953966746,0.41826781,3520.9,3520.8,3.0]
[1718953966916,0.49187827,3521.6,3520.8,3.0]
[1718953966917,0.41826781,3521.5,3520.8,3.61598]
[1718953967122,0.41826781,3521.4,3520.8,3.61598]
[1718953967322,0.41826781,3521.3,3520.9,0.677578]
[1718953967515,0.49187827,3521.6,3520.9,0.677578]
[1718953967516,0.41826781,3521.2,3520.9,0.677578]
[1718953967717,0.41826781,3521.1,3520.9,0.677578]
[1718953967917,0.41826781,3521.0,3520.9,0.677578]
[1718953968117,0.41826781,3521.5,3520.9,0.677578]
[1718953968347,0.41826781,3521.4,3520.8,3.0]
[1718953968549,0.41826781,3521.3,3520.8,3.0]
[1718953968734,0.41826781,3521.2,3520.8,3.0]
[1718953968942,0.41826781,3521.1,3520.9,0.61598]
[1718953969135,0.41826781,3521.0,3520.9,0.61598]
[1718953969339,0.41826781,3521.0,3520.8,3.0]
[1718953969649,0.41826781,3520.9,3520.8,3.0]
[1718953969849,0.91017261,3521.4,3520.7,5.2868]
[1718953970060,0.41826781,3521.3,3520.8,0.61598]
[1718953970230,0.91018495,3521.3,3520.8,3.0]
[1718953970549,0.91018495,3521.2,3520.8,3.0]
[1718953970844,0.91018495,3521.1,3520.7,5.2868]
[1718953971048,0.41835226,3521.0,3520.7,5.2868]
[1718953971227,0.41835226,3520.9,3520.7,5.2868]
[1718953971428,0.41835226,3520.8,3520.7,5.2868]
[1718953971623,0.41835226,3521.3,3520.7,5.2868]
[1718953971829,0.41835226,3521.2,3520.7,5.2868]
[1718953972029,0.41835226,3521.1,3520.7,5.2868]
[1718953972249,0.873,3521.5,3520.7,5.2868]
[1718953972250,0.41835226,3521.0,3520.7,5.2868]
[1718953972442,0.41835226,3520.9,3520.7,5.90278]
[1718953972637,0.4919134,3521.4,3520.7,5.2868]
[1718953972638,0.41835226,3520.8,3520.7,5.2868]
[1718953973632,0.41835226,3521.3,3520.7,5.2868]
[1718953975455,0.9102624,3521.3,3520.7,5.2868]
[1718953975754,0.9102624,3521.2,3520.7,5.2868]
[1718953975959,0.41835226,3521.1,3520.7,5.2868]
[1718953976159,0.49191014,3521.4,3520.7,5.2868]
[1718953976160,0.41835226,3521.0,3520.7,5.2868]
[1718953976325,0.41835226,3520.9,3520.7,5.2868]
[1718953976526,0.41835226,3520.8,3520.7,5.2868]
[1718953976732,0.41835226,3521.3,3520.7,5.2868]
[1718953976932,0.41835226,3521.2,3520.7,5.2868]
[1718953977138,0.41835226,3521.1,3520.7,5.2868]
[1718953977333,0.41835226,3521.0,3520.7,5.2868]
[1718953977540,0.41835226,3520.9,3520.7,5.2868]
[1718953977751,0.49191014,3521.4,3520.7,5.2868]
[1718953977752,0.41835226,3520.8,3520.7,5.2868]
[1718953978058,0.41835226,3521.3,3520.7,5.90278]
[1718953978247,0.41835226,3521.3,3520.7,5.2868]
[1718953978752,1.40216346,3521.3,3520.7,5.2868]
[1718953978934,0.873,3521.5,3520.7,5.2868]
[1718953978935,0.91025705,3521.2,3520.7,5.2868]
[1718953979131,0.41835226,3521.1,3520.7,5.2868]
[1718953979458,0.41835226,3521.0,3520.7,5.2868]
[1718953979660,0.41835226,3520.9,3520.7,5.2868]
[1718953979829,0.41835226,3520.8,3520.7,5.2868]
[1718953980031,0.41835226,3521.3,3520.7,5.2868]
[1718953980232,0.41835226,3521.2,3520.7,5.2868]
[1718953980461,0.41835226,3521.1,3520.7,5.2868]
[1718953980662,0.41835226,3521.0,3520.7,5.2868]
[1718953980983,0.41835226,3520.9,3520.7,5.2868]
[1718953981261,0.41835226,3520.8,3520.7,5.2868]
[1718953981444,0.41835226,3521.2,3520.7,5.2868]
[1718953981652,2.2755,3521.7,3520.8,0.873]
[1718953981653,0.41835226,3521.1,3520.8,0.873]
[1718953981849,0.41835226,3521.0,3520.8,3.873]
[1718953982046,0.49190144,3521.6,3520.9,0.91598]
[1718953982254,0.49190144,3521.6,3521.0,2.487]
[1718953982255,0.41832369,3521.5,3521.0,2.487]
[1718953982647,0.41832369,3521.4,3521.0,2.487]
[1718953982841,0.41832369,3521.3,3521.0,2.487]
[1718953983166,0.41832369,3521.2,3521.0,3.123]
[1718953983466,0.41832369,3521.1,3521.0,2.487]
[1718953983666,0.873,3521.5,3520.8,3.0]
[1718953983866,1.33282604,3521.4,3520.6,5.2665]
[1718953984038,0.41832369,3521.3,3520.6,5.2665]
[1718953984243,0.91026658,3521.3,3520.6,5.2665]
[1718953984431,0.41832369,3521.2,3520.6,5.2665]
[1718953984637,0.41832369,3521.1,3520.6,5.2665]
[1718953984843,0.41832369,3521.0,3520.6,5.2665]
[1718953985094,0.41832369,3520.9,3520.6,5.2665]
[1718953985253,0.41832369,3520.8,3520.6,5.2665]
[1718953985452,0.41832369,3520.7,3520.6,5.2665]
[1718953985685,0.59707913,3521.3,3520.6,5.2665]
[1718953986023,0.41832369,3521.2,3520.6,5.2665]
[1718953986345,0.91026658,3521.2,3520.6,5.2665]
[1718953986547,0.41832369,3521.1,3520.6,5.2665]
[1718953986802,0.41832369,3521.0,3520.6,5.2665]
[1718953986947,0.41832369,3520.9,3520.6,5.2665]
[1718953987147,0.41832369,3520.8,3520.6,5.2665]
[1718953987354,0.41832369,3520.7,3520.6,3.0]
[1718953987572,0.9102697,3521.2,3520.6,3.0]
[1718953987773,0.41832369,3521.1,3520.6,3.0]
[1718953987999,0.41832369,3521.1,3520.5,5.0384]
[1718953988000,0.873,3520.9,3520.5,5.0384]
[1718953988278,3.25078567,3520.8,3520.5,5.0384]
[1718953988449,0.91028567,3520.7,3520.5,5.0384]
[1718953988775,0.91030989,3520.6,3520.2,3.0]
[1718953988977,0.41832369,3520.5,3520.1,2.2999]
[1718953989279,0.41832369,3520.4,3520.1,2.2999]
[1718953989580,0.41832369,3520.3,3520.1,2.2999]
[1718953989756,0.41832369,3520.2,3520.1,2.2999]
[1718953990277,0.41832369,3520.6,3520.1,2.2999]
[1718953990489,2.3405,3520.8,3520.1,2.2999]
[1718953990490,0.41832369,3520.5,3520.1,2.2999]
[1718953990697,0.41832369,3520.4,3520.1,2.2999]
[1718953990897,0.41832369,3520.3,3520.1,2.2999]
[1718953991096,0.41832369,3520.2,3520.1,2.2999]
[1718953991452,0.41832369,3520.6,3520.1,2.2999]
[1718953991683,0.41832369,3520.5,3520.1,2.2999]
[1718953991991,0.41832369,3520.4,3520.1,2.2999]
[1718953992197,0.41832369,3520.3,3520.1,3.42103]
[1718953992354,0.49199481,3520.7,3520.2,3.0]
[1718953992677,0.41817044,3520.6,3520.2,3.0]
[1718953993597,0.41817044,3520.5,3520.2,3.0]
[1718953993755,0.91016077,3520.5,3520.1,5.2999]
[1718953993955,0.41817044,3520.4,3520.1,5.2999]
[1718953994300,0.41817044,3520.3,3520.1,5.2999]
[1718953994614,0.41817044,3520.2,3520.1,5.2999]
[1718953994753,0.41817044,3520.6,3520.1,5.2999]
[1718953994953,0.49199033,3520.7,3520.1,5.2999]
[1718953994954,0.41817044,3520.5,3520.1,5.2999]
[1718953995154,0.41817044,3520.4,3520.1,5.2999]
[1718953995392,0.41817044,3520.3,3520.1,5.2999]
[1718953995599,0.41817044,3520.2,3520.1,5.2999]
[1718953996082,0.41817044,3520.6,3520.1,5.91719]
[1718953996284,0.41817044,3520.6,3520.1,5.2999]
[1718953996650,0.91015995,3520.6,3520.1,5.2999]
[1718953996867,0.91015996,3520.5,3520.1,5.2999]
[1718953997072,0.91015999,3520.4,3520.1,5.2999]
[1718953997256,0.41817044,3520.3,3520.1,5.2999]
[1718953997470,0.41817044,3520.2,3520.1,5.2999]
[1718953997782,0.41817044,3520.6,3520.1,5.2999]
[1718953999863,0.91014601,3520.6,3520.1,5.2999]
[1718954000069,0.41817044,3520.5,3520.1,5.2999]
[1718954000255,0.41817044,3520.4,3520.1,5.91719]
[1718954000457,0.41817044,3520.3,3520.2,3.1265]
[1718954000793,2.2793,3521.4,3520.2,3.1265]
[1718954000794,0.91020555,3520.8,3520.3,2.2535]
[1718954000960,0.41822996,3520.7,3520.5,2.2535]
[1718954001164,0.41822996,3520.6,3520.5,5.2535]
[1718954001484,0.41822996,3521.2,3520.5,5.2535]
[1718954001690,0.41822996,3521.1,3520.5,5.2535]
[1718954001884,0.41822996,3521.0,3520.5,5.2535]
[1718954002093,0.41822996,3520.9,3520.5,5.2535]
[1718954002288,0.49197557,3521.3,3520.5,5.2535]
[1718954002289,0.41822996,3520.8,3520.5,5.2535]
[1718954002490,0.41822996,3520.7,3520.5,5.2535]
[1718954002670,0.41822996,3520.6,3520.5,5.2535]
[1718954002872,0.41822996,3521.2,3520.5,5.2535]
[1718954003168,0.41822996,3521.1,3520.6,0.873]
[1718954003359,0.41822996,3521.0,3520.7,2.4888]
[1718954003571,0.41822996,3521.0,3520.8,0.33618]
[1718954003778,0.41822996,3520.9,3520.8,0.33618]
[1718954004008,0.41822996,3520.9,3520.7,2.4888]
[1718954004194,0.41822996,3520.8,3520.7,2.4888]
[1718954004400,0.41822996,3521.5,3520.7,2.4888]
[1718954004706,0.41822996,3521.4,3520.7,2.4888]
[1718954004912,0.41822996,3521.3,3520.7,2.4888]
[1718954005081,0.41822996,3521.2,3520.7,2.4888]
[1718954005288,0.41822996,3521.1,3520.7,2.4888]
[1718954005491,0.41822996,3521.0,3520.7,2.82498]
[1718954005809,0.41822996,3520.9,3520.7,2.4888]
[1718954006018,0.49197557,3521.5,3520.7,2.4888]
[1718954006019,0.41822996,3520.8,3520.7,2.4888]
[1718954006681,0.91013845,3521.4,3520.7,2.4888]
[1718954006904,0.91013845,3521.3,3520.7,2.4888]
[1718954007103,0.41822996,3521.2,3520.7,2.4888]
[1718954007421,0.41822996,3521.1,3520.8,0.33618]
[1718954007582,0.41822996,3521.0,3520.8,3.33618]
[1718954007776,0.873,3521.6,3520.8,3.33618]
[1718954007777,0.41822996,3520.9,3520.8,3.33618]
[1718954007982,0.41822996,3521.3,3520.8,3.33618]
[1718954008183,0.41822996,3521.2,3520.9,0.669798]
[1718954008378,0.41822996,3521.1,3521.0,2.345]
[1718954008816,0.41822996,3521.4,3521.0,2.345]
[1718954009184,0.91011072,3521.4,3521.0,2.345]
[1718954009413,0.41822996,3521.3,3521.0,2.345]
[1718954009590,0.91011072,3521.3,3521.0,2.345]
[1718954009802,0.91011072,3521.2,3521.0,2.345]
[1718954009996,0.41822996,3521.1,3521.0,2.345]
[1718954010385,0.49188076,3521.5,3521.0,2.345]
[1718954010386,0.41822996,3521.4,3521.0,2.345]
[1718954011007,0.41822996,3521.3,3521.0,2.345]
[1718954011183,0.41822996,3521.2,3521.0,2.345]
[1718954011523,0.41822996,3521.1,3521.0,2.345]
[1718954011715,0.41822996,3521.6,3521.0,2.345]
[1718954011902,0.41822996,3521.5,3521.0,2.345]
[1718954012108,0.41822996,3521.4,3521.0,2.345]
[1718954012421,0.41822996,3521.3,3521.0,2.345]
[1718954012587,0.41822996,3521.6,3521.0,2.345]
[1718954012788,0.41822996,3521.5,3521.0,2.345]
[1718954013115,0.41822996,3521.4,3521.0,2.345]
[1718954013324,0.4918804,3521.7,3521.0,2.345]
[1718954013325,0.41822996,3521.3,3521.0,2.345]
[1718954013490,0.41822996,3521.2,3521.0,2.345]
[1718954013690,0.41822996,3521.1,3521.0,2.345]
[1718954014111,0.41822996,3521.6,3521.0,2.345]
[1718954014420,0.41822996,3521.5,3521.0,2.345]
[1718954014594,0.91011036,3521.5,3521.0,2.345]
[1718954014800,0.41822996,3521.4,3521.0,2.345]
[1718954015212,0.91011036,3521.4,3521.0,2.345]
[1718954015398,0.41822996,3521.3,3521.0,2.345]
[1718954015596,0.41822996,3521.2,3521.0,2.345]
[1718954015817,0.41822996,3521.1,3521.0,2.345]
[1718954016525,0.91009285,3521.5,3521.0,2.345]
[1718954016704,0.41822996,3521.4,3521.0,2.345]
[1718954016902,0.41822996,3521.3,3521.0,2.345]
[1718954017124,0.41822996,3521.2,3521.0,2.345]
[1718954017323,0.41822996,3521.1,3521.0,2.345]
[1718954017520,0.41822996,3521.6,3521.0,2.345]
[1718954018906,0.41822996,3521.5,3521.0,2.345]
[1718954019104,0.41822996,3521.4,3521.0,2.345]
[1718954019303,0.41822996,3521.3,3521.0,2.345]
[1718954019508,0.41822996,3521.2,3521.0,2.345]
[1718954019808,0.41822996,3521.1,3521.0,2.345]
[1718954020016,0.41822996,3521.1,3521.0,1.4948]
[1718954020213,2.2699,3522.4,3521.1,2.3892]
[1718954020214,0.49186161,3522.1,3521.1,2.3892]
[1718954020550,0.41832923,3522.0,3521.4,2.3892]
[1718954020693,0.49186161,3522.3,3521.4,2.3892]
[1718954020694,0.41832923,3521.9,3521.4,2.3892]
[1718954020890,0.41832923,3521.8,3521.4,2.3892]
[1718954021110,0.41832923,3521.7,3521.4,2.3892]
[1718954021315,0.41832923,3521.6,3521.4,2.3892]
[1718954021637,0.41832923,3521.5,3521.4,2.3892]
[1718954021790,0.41832923,3522.0,3521.4,2.3892]
[1718954021997,0.41832923,3521.9,3521.4,2.3892]
[1718954022336,0.41832923,3521.8,3521.4,2.3892]
[1718954022506,0.41832923,3521.7,3521.4,2.3892]
[1718954022692,0.41832923,3521.6,3521.4,2.3892]
[1718954022896,0.49178752,3522.3,3521.4,2.3892]
[1718954022897,0.41832923,3521.5,3521.4,2.3892]
[1718954023416,0.41832923,3522.0,3521.4,2.3892]
[1718954023615,0.49178752,3522.1,3521.4,2.3892]
[1718954023616,0.41832923,3521.9,3521.4,2.3892]
[1718954023819,0.41832923,3521.8,3521.4,2.3892]
[1718954024034,0.41832923,3521.7,3521.4,2.3892]
[1718954024195,0.41832923,3521.6,3521.4,2.3892]
[1718954024540,0.41832923,3521.5,3521.4,2.3892]
[1718954024747,0.41832923,3522.0,3521.4,2.3892]
[1718954025057,0.41832923,3521.9,3521.4,2.3892]
[1718954025198,0.41832923,3521.8,3521.4,2.3892]
[1718954025397,0.41832923,3521.7,3521.4,2.3892]
[1718954025598,0.41832923,3521.6,3521.4,2.3892]
[1718954025819,0.41832923,3521.5,3521.4,2.3892]
[1718954026472,0.91012986,3522.0,3521.4,2.3892]
[1718954026760,0.91012986,3521.9,3521.4,2.3892]
[1718954027049,0.91012986,3521.8,3521.4,2.3892]
[1718954027250,0.41832923,3521.7,3521.4,2.71542]
[1718954027409,0.41832923,3521.6,3521.4,2.3892]
[1718954027610,0.41832923,3521.5,3521.4,2.3892]
[1718954027910,0.41832923,3522.0,3521.4,2.3892]
[1718954028116,0.41832923,3521.9,3521.4,2.71542]
[1718954028361,0.41832923,3521.8,3521.4,2.71542]
[1718954028548,0.41832923,3521.7,3521.4,2.71542]
[1718954028741,0.41832923,3521.6,3521.4,2.3892]
[1718954029053,0.41832923,3521.5,3521.4,2.3892]
[1718954029228,0.41832923,3521.7,3521.4,2.3892]
[1718954029428,0.41832923,3521.6,3521.4,2.3892]
[1718954029730,0.41832923,3521.5,3521.4,2.3892]
[1718954029912,0.41832923,3521.5,3521.4,2.71542]
[1718954030117,0.41832923,3522.0,3521.4,2.71542]
[1718954031560,0.91015085,3522.0,3521.4,2.71542]
[1718954031845,0.91015085,3521.9,3521.4,2.71542]
[1718954032047,0.91015085,3521.8,3521.4,2.71542]
[1718954032242,0.41832923,3521.7,3521.4,2.71542]
[1718954032551,0.41832923,3521.6,3521.4,2.3892]
[1718954032713,0.41832923,3521.5,3521.4,2.3892]
[1718954032919,0.41832923,3522.0,3521.4,2.3892]
[1718954033152,0.41832923,3521.9,3521.4,2.71542]
[1718954033447,0.41832923,3521.8,3521.4,2.71542]
[1718954033648,0.41832923,3521.7,3521.4,2.71542]
[1718954033854,0.41832923,3521.6,3521.4,2.3892]
[1718954034155,0.41832923,3521.5,3521.4,2.3892]
[1718954034347,0.41832923,3522.0,3521.4,2.3892]
[1718954034659,0.91014531,3522.0,3521.5,0.62622]
[1718954034967,0.41832923,3521.9,3521.5,0.62622]
[1718954035123,0.41832923,3521.8,3521.5,0.62622]
[1718954035318,0.91013918,3521.8,3521.6,0.601542]
[1718954035532,0.91013918,3521.7,3521.6,0.601542]
[1718954035727,0.41832923,3521.7,3521.4,2.3892]
[1718954036050,0.41832923,3521.6,3521.4,2.3892]
[1718954036354,0.41832923,3521.5,3521.4,2.3892]
[1718954036529,0.41832923,3522.0,3521.4,2.3892]
[1718954036730,0.41832923,3521.9,3521.4,2.3892]
[1718954036929,0.41832923,3521.8,3521.4,2.3892]
[1718954037140,0.41832923,3521.7,3521.5,0.62622]
[1718954037452,0.41832923,3521.6,3521.5,0.62622]
[1718954037649,0.41832923,3521.6,3521.4,2.3892]
[1718954037854,0.41832923,3521.5,3521.4,2.3892]
[1718954038026,0.41832923,3521.9,3521.4,2.3892]
[1718954038225,0.41832923,3521.8,3521.4,3.01542]
[1718954038549,0.41832923,3521.7,3521.4,3.01542]
[1718954038749,0.41832923,3521.6,3521.4,3.01542]
[1718954038933,0.41832923,3521.5,3521.4,3.01542]
[1718954039322,0.41832923,3522.0,3521.4,3.01542]
[1718954039518,0.41832923,3521.9,3521.4,3.01542]
[1718954039718,0.41855882,3521.8,3521.5,0.688842]
[1718954039924,0.41855882,3521.7,3521.4,2.3892]
[1718954040123,0.41855882,3521.6,3521.4,2.3892]
[1718954040353,0.41855882,3521.5,3521.4,2.3892]
[1718954040555,0.41855882,3522.0,3521.4,2.3892]
[1718954040855,0.41855882,3521.9,3521.4,3.01542]
[1718954041062,0.91036594,3521.9,3521.4,3.01542]
[1718954041273,0.41855882,3521.8,3521.4,3.01542]
[1718954041471,0.41855882,3521.7,3521.4,3.01542]
[1718954041672,0.41855882,3521.6,3521.4,2.3892]
[1718954041870,0.41855882,3521.5,3521.4,2.3892]
[1718954042384,0.41855882,3522.0,3521.4,2.3892]
[1718954043446,0.91037323,3522.0,3521.4,2.3892]
[1718954043649,0.91037303,3521.9,3521.4,2.3892]
[1718954043888,0.41855882,3521.8,3521.4,2.3892]
[1718954044045,0.91037311,3521.8,3521.4,2.3892]